fUSD/lending_fUSD_20241110
["ID","MTS","AMOUNT","RATE_DAILY","PERIOD"]
[341891415,1731270644927,-4812.91,0.00014992,2]
[341891416,1731270644936,-413.58679635,0.00014992,2]
[341891417,1731270644945,-3996.71,0.00014992,2]
[341891418,1731270644954,-1279.69,0.00014992,2]
[341891419,1731270644964,-3996.71,0.00014992,2]
[341891420,1731270644973,-1279.69,0.00014992,2]
[341891421,1731270644982,-1279.69,0.00014992,2]
[341891422,1731270644991,-4107.88,0.00014992,2]
[341891423,1731270645000,-1279.69,0.00014992,2]
[341891424,1731270645010,-500.0,0.00014992,2]
[341891425,1731270645019,-4107.88,0.00014992,2]
[341891426,1731270645027,-1279.69,0.00014992,2]
[341891427,1731270645036,-4107.88,0.00014992,2]
[341891428,1731270645046,-1279.69,0.00014992,2]
[341891429,1731270645055,-500.0,0.00014992,2]
[341891430,1731270645064,-4107.88,0.00014992,2]
[341891431,1731270645074,-1279.69,0.00014992,2]
[341891432,1731270645083,-4107.88,0.00014992,2]
[341891433,1731270645092,-1279.69,0.00014992,2]
[341891434,1731270645101,-4107.88,0.00014992,2]
[341891435,1731270645164,-4107.88,0.00014992,2]
[341891436,1731270645178,-1279.69,0.00014992,2]
[341891437,1731270645187,-4107.88,0.00014992,2]
[341891438,1731270645196,-1279.69,0.00014992,2]
[341891439,1731270645205,-500.0,0.00014992,2]
[341891440,1731270645214,-500.0,0.00014992,2]
[341891441,1731270645223,-500.0,0.00014992,2]
[341891442,1731270645232,-4377.56,0.00014992,2]
[341891443,1731270645242,-4377.56,0.00014992,2]
[341891444,1731270645251,-4377.56,0.00014992,2]
[341891445,1731270645262,-4377.56,0.00014992,2]
[341891446,1731270645273,-4377.56,0.00014992,2]
[341891447,1731270645283,-659.35,0.00014992,2]
[341891448,1731270645292,-659.35,0.00014992,2]
[341891449,1731270645302,-42.50939596,0.00014992,2]
[341891456,1731270645662,-616.84060404,0.00014992,2]
[341891457,1731270645673,-659.35,0.00014992,2]
[341891458,1731270645683,-659.35,0.00014992,2]
[341891459,1731270645692,-266.6102251,0.00014992,2]
[341891460,1731270645703,-392.7397749,0.00014992,2]
[341891461,1731270645712,-409.77567164,0.00014992,2]
[341891462,1731270645723,-249.57432836,0.00014992,2]
[341891463,1731270645732,-659.35,0.00014992,2]
[341891464,1731270645742,-475.35964272,0.00014992,2]
[341891465,1731270645754,-144.47035728,0.00014992,2]
[341891466,1731270645764,-500.0,0.00014992,2]
[341891467,1731270645775,-152.22645727,0.00014992,2]
[341891468,1731270645848,-397.16,0.00014991,2]
[341891469,1731270645882,-102.84,0.00014991,2]
[341891470,1731270645891,-467.60354273,0.00014992,2]
[341891471,1731270645900,-500.0,0.00014992,2]
[341891472,1731270645909,-619.83,0.00014992,2]
[341891473,1731270645920,-619.83,0.00014992,2]
[341891474,1731270645929,-619.83,0.00014992,2]
[341891475,1731270645938,-619.83,0.00014992,2]
[341891476,1731270645947,-619.83,0.00014992,2]
[341891477,1731270645956,-619.83,0.00014992,2]
[341891478,1731270645965,-619.83,0.00014992,2]
[341891479,1731270645974,-3466.72,0.00014992,2]
[341891480,1731270645983,-619.83,0.00014992,2]
[341891481,1731270645992,-3466.72,0.00014992,2]
[341891482,1731270646002,-3466.72,0.00014992,2]
[341891483,1731270646011,-3466.72,0.00014992,2]
[341891484,1731270646020,-3466.72,0.00014992,2]
[341891485,1731270646029,-3526.22,0.00014992,2]
[341891486,1731270646037,-3526.22,0.00014992,2]
[341891487,1731270646046,-3526.22,0.00014992,2]
[341891488,1731270646056,-746.51,0.00014992,2]
[341891489,1731270646065,-3526.22,0.00014992,2]
[341891490,1731270646075,-746.51,0.00014992,2]
[341891491,1731270646087,-3526.22,0.00014992,2]
[341891492,1731270646098,-3526.22,0.00014992,2]
[341891493,1731270646107,-3526.22,0.00014992,2]
[341891494,1731270646116,-603.86,0.00014992,2]
[341891495,1731270646125,-3526.22,0.00014992,2]
[341891496,1731270646134,-603.86,0.00014992,2]
[341891497,1731270646144,-2907.6,0.00014992,2]
[341891498,1731270646153,-603.86,0.00014992,2]
[341891499,1731270646163,-2907.6,0.00014992,2]
[341891500,1731270646175,-603.86,0.00014992,2]
[341891501,1731270646185,-2907.6,0.00014992,2]
[341891502,1731270646195,-2907.6,0.00014992,2]
[341891503,1731270646204,-603.86,0.00014992,2]
[341891504,1731270646215,-603.86,0.00014992,2]
[341891505,1731270646225,-2907.6,0.00014992,2]
[341891506,1731270646234,-603.86,0.00014992,2]
[341891507,1731270646244,-603.86,0.00014992,2]
[341891508,1731270646254,-603.86,0.00014992,2]
[341891509,1731270646265,-603.86,0.00014992,2]
[341891510,1731270646276,-500.0,0.00014992,2]
[341891512,1731270646285,-500.0,0.00014992,2]
[341891514,1731270646295,-1520.78,0.00014992,2]
[341891515,1731270646306,-5102.21,0.00014992,2]
[341891516,1731270646316,-1520.78,0.00014992,2]
[341891517,1731270646326,-1520.78,0.00014992,2]
[341891518,1731270646335,-5102.21,0.00014992,2]
[341891519,1731270646346,-1520.78,0.00014992,2]
[341891520,1731270646356,-1520.78,0.00014992,2]
[341891521,1731270646366,-1520.78,0.00014992,2]
[341891522,1731270646375,-1520.78,0.00014992,2]
[341891523,1731270646386,-500.0,0.00014992,2]
[341891524,1731270646397,-1520.78,0.00014992,2]
[341891525,1731270646406,-500.0,0.00014992,2]
[341891526,1731270646416,-500.0,0.00014992,2]
[341891527,1731270646428,-500.0,0.00014992,2]
[341891528,1731270646438,-500.0,0.00014992,2]
[341891529,1731270646447,-1029.25,0.00014992,2]
[341891530,1731270646457,-1029.25,0.00014992,2]
[341891531,1731270646467,-1029.25,0.00014992,2]
[341891532,1731270646477,-1029.25,0.00014992,2]
[341891533,1731270646486,-437.96452004,0.00014992,2]
[341891534,1731270646496,-2801.92,0.00014992,2]
[341891535,1731270646506,-1029.25,0.00014992,2]
[341891536,1731270646516,-2801.92,0.00014992,2]
[341891537,1731270646526,-1029.25,0.00014992,2]
[341891538,1731270646535,-1029.25,0.00014992,2]
[341891539,1731270646545,-1029.25,0.00014992,2]
[341891540,1731270646555,-1029.25,0.00014992,2]
[341891541,1731270646565,-1029.25,0.00014992,2]
[341891542,1731270646575,-6252.89,0.00014992,2]
[341891543,1731270646584,-500.0,0.00014992,2]
[341891544,1731270646594,-6252.89,0.00014992,2]
[341891545,1731270646604,-6252.89,0.00014992,2]
[341891546,1731270646614,-6252.89,0.00014992,2]
[341891547,1731270646625,-6252.89,0.00014992,2]
[341891548,1731270646634,-500.0,0.00014992,2]
[341891549,1731270646644,-500.0,0.00014992,2]
[341891550,1731270646653,-500.0,0.00014992,2]
[341891551,1731270646662,-500.0,0.00014992,2]
[341891552,1731270646674,-500.0,0.00014992,2]
[341891553,1731270646683,-500.0,0.00014992,2]
[341891554,1731270646692,-500.0,0.00014992,2]
[341891555,1731270646702,-5774.43,0.00014992,2]
[341891556,1731270646711,-500.0,0.00014992,2]
[341891557,1731270646721,-1167.95987515,0.00014992,2]
[341891558,1731270646762,-4606.47012485,0.00014992,2]
[341891559,1731270646771,-2381.89,0.00014992,2]
[341891560,1731270646781,-2381.89,0.00014992,2]
[341891561,1731270646791,-5810.33,0.00014992,2]
[341891562,1731270646801,-2381.89,0.00014992,2]
[341891563,1731270646810,-5810.33,0.00014992,2]
[341891564,1731270646820,-2381.89,0.00014992,2]
[341891565,1731270646829,-500.0,0.00014992,2]
[341891566,1731270646839,-2381.89,0.00014992,2]
[341891567,1731270646848,-500.0,0.00014992,2]
[341891568,1731270646857,-2381.89,0.00014992,2]
[341891569,1731270646867,-500.0,0.00014992,2]
[341891570,1731270646876,-2381.89,0.00014992,2]
[341891571,1731270646885,-5810.33,0.00014992,2]
[341891572,1731270646894,-2381.89,0.00014992,2]
[341891573,1731270646903,-5810.33,0.00014992,2]
[341891574,1731270646913,-5810.33,0.00014992,2]
[341891575,1731270646926,-500.0,0.00014992,2]
[341891576,1731270646937,-5810.33,0.00014992,2]
[341891577,1731270646948,-500.0,0.00014992,2]
[341891578,1731270646958,-3931.62330027,0.00014992,2]
[341891579,1731270647012,-358.64999988,0.00014992,2]
[341891580,1731270647906,-500.0,0.00014991,2]
[341891581,1731270647916,-1520.05669985,0.00014992,2]
[341891582,1731270647928,-500.0,0.00014992,2]
[341891583,1731270647937,-5425.14330015,0.00014992,2]
[341891584,1731270647961,-385.18669985,0.00014992,2]
[341891585,1731270647971,-783.03000441,0.00014992,2]
[341891586,1731270648032,-414.83827645,0.00014992,2]
[341891587,1731270648048,-4612.46171914,0.00014992,2]
[341891588,1731270648058,-1200.86653887,0.00014992,2]
[341891589,1731270648070,-292.036,0.00014992,2]
[341891590,1731270648100,-4317.42746113,0.00014992,2]
[341891591,1731270648110,-3745.94,0.00014992,2]
[341891592,1731270648119,-3745.94,0.00014992,2]
[341891593,1731270648129,-771.50778138,0.00014992,2]
[341891594,1731270648325,-1995.87221862,0.00014992,2]
[341891595,1731270648334,-500.0,0.00014992,2]
[341891596,1731270648345,-2767.38,0.00014992,2]
[341891597,1731270648354,-1211.04,0.00014992,2]
[341891598,1731270648364,-485.83484769,0.00014992,2]
[341891599,1731270648375,-725.20515231,0.00014992,2]
[341891600,1731270648385,-1211.04,0.00014992,2]
[341891601,1731270648394,-66.95027082,0.00014992,2]
[341891602,1731270648406,-1347.23972918,0.00014992,2]
[341891603,1731270648415,-1211.04,0.00014992,2]
[341891604,1731270648428,-1414.19,0.00014992,2]
[341891605,1731270648438,-1211.04,0.00014992,2]
[341891606,1731270648448,-1414.19,0.00014992,2]
[341891607,1731270648458,-359.03547996,0.00014992,2]
[341891608,1731270648468,-816.9098401,0.00014992,2]
[341891609,1731270648479,-394.1301599,0.00014992,2]
[341891610,1731270648488,-1414.19,0.00014992,2]
[341891611,1731270648498,-1211.04,0.00014992,2]
[341891612,1731270648508,-1414.19,0.00014992,2]
[341891613,1731270648517,-679.27883487,0.00014992,2]
[341891614,1731270648529,-531.76116513,0.00014992,2]
[341891615,1731270648539,-902.77,0.00014992,2]
[341891616,1731270648548,-902.77,0.00014992,2]
[341891617,1731270648557,-902.77,0.00014992,2]
[341891618,1731270648567,-500.0,0.00014992,2]
[341891619,1731270648576,-4941.63,0.00014992,2]
[341891620,1731270648586,-4941.63,0.00014992,2]
[341891621,1731270648595,-476.38596005,0.00014992,2]
[341891622,1731270648659,-23.61403995,0.00014992,2]
[341891623,1731270648670,-5662.38,0.00014992,2]
[341891624,1731270648679,-2251.30596004,0.00014992,2]
[341891625,1731270648691,-482.7532206,0.00014992,2]
[341891626,1731270648702,-2928.32081936,0.00014992,2]
[341891627,1731270648711,-1869.58,0.00014992,2]
[341891628,1731270648721,-1191.39677942,0.00014992,2]
[341891629,1731270648732,-1574.51295609,0.00014992,2]
[341891630,1731270649167,-297.53764072,0.000147,2]
[341891631,1731270649179,-5200.38026449,0.00014992,2]
[341891632,1731270649189,-7966.29,0.00014992,2]
[341891633,1731270649198,-1869.58,0.00014992,2]
[341891634,1731270649208,-1869.58,0.00014992,2]
[341891635,1731270649218,-1869.58,0.00014992,2]
[341891636,1731270649227,-1869.58,0.00014992,2]
[341891637,1731270649237,-1458.87709993,0.00014992,2]
[341891638,1731270649248,-410.70290007,0.00014992,2]
[341891639,1731270649258,-1869.58,0.00014992,2]
[341891640,1731270649272,-1869.58,0.00014992,2]
[341891641,1731270649282,-710.31,0.00014992,2]
[341891642,1731270649291,-510.95758105,0.00014992,2]
[341891643,1731270649303,-710.31,0.00014992,2]
[341891644,1731270649312,-710.31,0.00014992,2]
[341891645,1731270649322,-710.31,0.00014992,2]
[341891646,1731270649332,-710.31,0.00014992,2]
[341891647,1731270649342,-500.0,0.00014992,2]
[341891648,1731270649352,-2726.42,0.00014992,2]
[341891649,1731270649361,-2726.42,0.00014992,2]
[341891650,1731270649371,-1832.61529675,0.00014992,2]
[341891651,1731270649383,-432.96549643,0.00014992,2]
[341891652,1731270649531,-460.83920682,0.00014992,2]
[341891653,1731270649540,-902.4,0.00014992,2]
[341891654,1731270649549,-902.4,0.00014992,2]
[341891655,1731270649559,-500.0,0.00014992,2]
[341891656,1731270649568,-1925.76,0.00014992,2]
[341891657,1731270649578,-848.78,0.00014992,2]
[341891658,1731270649587,-848.78,0.00014992,2]
[341891659,1731270649596,-550.1,0.00014992,2]
[341891660,1731270649607,-2548.29,0.00014992,2]
[341891661,1731270649617,-2548.29,0.00014992,2]
[341891662,1731270649626,-2548.29,0.00014992,2]
[341891663,1731270649636,-2548.29,0.00014992,2]
[341891664,1731270649646,-2548.29,0.00014992,2]
[341891665,1731270649655,-500.0,0.00014992,2]
[341891666,1731270649665,-548.5384813,0.00014992,2]
[341891667,1731270649675,-4197.73,0.00014992,2]
[341891668,1731270649685,-4197.73,0.00014992,2]
[341891669,1731270649694,-500.0,0.00014992,2]
[341891670,1731270649704,-500.0,0.00014992,2]
[341891671,1731270649713,-500.0,0.00014992,2]
[341891672,1731270649723,-500.0,0.00014992,2]
[341891673,1731270649733,-500.0,0.00014992,2]
[341891674,1731270649976,-500.0,0.00014992,2]
[341891675,1731270649987,-4237.69,0.00014992,2]
[341891676,1731270649996,-2078.59,0.00014992,2]
[341891677,1731270650005,-500.0,0.00014992,2]
[341891678,1731270650015,-2078.59,0.00014992,2]
[341891679,1731270650024,-461.63,0.00014992,2]
[341891680,1731270650033,-4237.69,0.00014992,2]
[341891681,1731270650043,-618.61,0.00014992,2]
[341891682,1731270650052,-618.61,0.00014992,2]
[341891683,1731270650062,-618.61,0.00014992,2]
[341891684,1731270650071,-842.32,0.00014992,2]
[341891685,1731270650082,-842.32,0.00014992,2]
[341891686,1731270650091,-842.32,0.00014992,2]
[341891687,1731270650100,-842.32,0.00014992,2]
[341891688,1731270650110,-5453.97,0.00014992,2]
[341891689,1731270650119,-842.32,0.00014992,2]
[341891690,1731270650128,-940.54,0.00014992,2]
[341891691,1731270650138,-5453.97,0.00014992,2]
[341891692,1731270650147,-842.32,0.00014992,2]
[341891693,1731270650156,-5453.97,0.00014992,2]
[341891694,1731270650165,-500.0,0.00014992,2]
[341891695,1731270650178,-842.32,0.00014992,2]
[341891696,1731270650189,-5453.97,0.00014992,2]
[341891697,1731270650198,-842.32,0.00014992,2]
[341891698,1731270650207,-4780.25870767,0.00014992,2]
[341891699,1731270650219,-365.60650263,0.00014992,2]
[341891700,1731270650238,-308.1047897,0.00014992,2]
[341891701,1731270650247,-500.0,0.00014992,2]
[341891702,1731270650256,-842.32,0.00014992,2]
[341891703,1731270650268,-500.0,0.00014992,2]
[341891704,1731270650278,-829.5751603,0.00014992,2]
[341891705,1731270650289,-12.7448397,0.00014992,2]
[341891706,1731270650298,-500.0,0.00014992,2]
[341891707,1731270650308,-500.0,0.00014992,2]
[341891708,1731270650318,-500.0,0.00014992,2]
[341891709,1731270650327,-500.0,0.00014992,2]
[341891710,1731270650338,-500.0,0.00014992,2]
[341891711,1731270650348,-500.0,0.00014992,2]
[341891712,1731270650357,-500.0,0.00014992,2]
[341891713,1731270650366,-979.9,0.00014992,2]
[341891714,1731270650375,-979.9,0.00014992,2]
[341891715,1731270650384,-6468.86,0.00014992,2]
[341891716,1731270650393,-6468.86,0.00014992,2]
[341891717,1731270650402,-6468.86,0.00014992,2]
[341891718,1731270650412,-6468.86,0.00014992,2]
[341891719,1731270650423,-482.44896029,0.00014992,2]
[341891720,1731270650438,-4638.88450064,0.00014992,2]
[341891721,1731270671158,400.02273672,0.00014996,120]
[341891722,1731270687785,15986.58820061,0.00017171,13]
[341891723,1731270713175,155.666,0.0001164,2]
[341891726,1731270919032,57944.8,0.00014247,7]
[341891731,1731271144394,10000.0,0.00016,7]
[341891732,1731271239991,157.37,0.00010835,2]
[341891752,1731271437649,1819.58,0.00011297,2]
[341891764,1731271600548,150.0,0.00013,5]
[341891765,1731271631160,-1471.85065871,0.00013112,2]
[341891767,1731271646115,-4455.4998811,0.00013112,2]
[341891768,1731271650837,-40000.0,0.00038311,120]
[341891769,1731271650861,-808.0,0.00038311,30]
[341891770,1731271650889,-429072.03566064,0.00038311,30]
[341891771,1731271650912,-3000.0,0.00038311,120]
[341891772,1731271650935,-10000.0,0.00038311,31]
[341891773,1731271650959,-12787.42112625,0.00038311,120]
[341891774,1731271650983,-753.39850496,0.00038311,30]
[341891775,1731271651007,-14425.35205343,0.00038311,120]
[341891776,1731271651030,-503.2411903,0.00038311,120]
[341891777,1731271651053,-3608.41119907,0.00038311,90]
[341891783,1731271831913,-497.01816605,0.00013011,2]
[341891784,1731271831972,-97.54889695,0.00013011,2]
[341891785,1731271831981,-450.55658954,0.00013022,2]
[341891786,1731271831993,-283.06794255,0.00013022,2]
[341891787,1731271832033,-196.33478176,0.00013022,2]
[341891788,1731271832043,-300.0,0.00013111,2]
[341891789,1731271832053,-14715.44946019,0.00013112,2]
[341891790,1731271832062,-851.21,0.00013122,2]
[341891791,1731271832072,-412.79,0.00013161,2]
[341891792,1731271832081,-250.0,0.00013218,2]
[341891793,1731271832091,-500.0,0.00013222,2]
[341891794,1731271832100,-5938.82,0.00013222,2]
[341891795,1731271832109,-250.0,0.00013232,2]
[341891796,1731271832118,-5935.03,0.00013253,2]
[341891797,1731271832127,-163.53,0.00013255,2]
[341891798,1731271832135,-1000.0,0.0001331,2]
[341891799,1731271832144,-197.46,0.0001331,2]
[341891800,1731271832153,-210.03,0.0001331,2]
[341891801,1731271832163,-282.53,0.00013463,2]
[341891802,1731271832172,-5482.37,0.00013463,2]
[341891803,1731271832181,-383.38,0.00013515,2]
[341891804,1731271832191,-2031.45,0.00013515,2]
[341891805,1731271832201,-318.78,0.00013515,2]
[341891807,1731271832210,-157.37,0.00013544,2]
[341891809,1731271832220,-1819.58,0.00013561,2]
[341891811,1731271832229,-2465.96,0.00013647,2]
[341891813,1731271832238,-401.66,0.00013649,2]
[341891815,1731271832247,-200.0,0.00013699,2]
[341891817,1731271832262,-500.0,0.00013699,2]
[341891819,1731271832271,-1748.41,0.00013748,2]
[341891821,1731271832280,-745.33814552,0.00013825,2]
[341891823,1731271832289,-150.0,0.00013825,2]
[341891825,1731271832298,-22851.88919272,0.00013826,2]
[341891827,1731271832309,-1048.11080728,0.00013826,2]
[341891829,1731271832319,-175.57,0.00013836,2]
[341891831,1731271832328,-155.29,0.00013885,2]
[341891833,1731271832337,-9651.25868516,0.000139,2]
[341891835,1731271832347,-8480.0,0.00014111,2]
[341891837,1731271832355,-7064.8,0.00014247,2]
[341891839,1731271832365,-150.0,0.00014311,2]
[341891841,1731271832374,-401.66,0.00014332,2]
[341891843,1731271832383,-420.0,0.00014376,2]
[341891844,1731271832393,-552.99,0.000144,2]
[341891846,1731271832403,-2910.0,0.00014583,2]
[341891847,1731271832412,-814.0,0.00014583,2]
[341891849,1731271832421,-3465.0,0.00014583,2]
[341891850,1731271832431,-5927.0,0.00014583,2]
[341891851,1731271832440,-150.0,0.00014583,2]
[341891852,1731271832449,-150.0,0.00014583,2]
[341891853,1731271832458,-155.0,0.00014583,2]
[341891854,1731271832467,-278.916,0.00014583,2]
[341891855,1731271832477,-309.6,0.0001469,3]
[341891856,1731271832486,-154.8,0.0001469,3]
[341891857,1731271832495,-464.4,0.0001469,3]
[341891858,1731271832510,-267.78387663,0.00014691,2]
[341891859,1731271832519,-500.0,0.00014699,2]
[341891860,1731271832529,-500.0,0.00014699,2]
[341891861,1731271832538,-344.26787165,0.00014699,2]
[341891862,1731271832547,-7691.01868129,0.000147,2]
[341891863,1731271832559,-2780.78971871,0.000147,2]
[341891864,1731271832569,-677.59632622,0.000147,2]
[341891865,1731271832596,-322.40367378,0.000147,2]
[341891866,1731271832605,-500.0,0.000147,2]
[341891867,1731271832615,-9934.09784622,0.000147,2]
[341891869,1731271837855,-279.892,0.00014583,2]
[341891870,1731271837864,-157.122,0.00014583,2]
[341891871,1731271837873,-290.621,0.00014583,2]
[341891872,1731271837881,-1091.0,0.00014583,2]
[341891873,1731271837890,-11034.41420747,0.000147,2]
[341891874,1731271837901,-9587.33634631,0.000147,2]
[341891875,1731271837910,-4323.03866629,0.000147,2]
[341891876,1731271837926,-37766.48843371,0.000147,2]
[341891877,1731271837935,-267.78387663,0.00014714,2]
[341891878,1731271837944,-267.78387663,0.00014737,2]
[341891879,1731271837953,-267.78387663,0.0001476,2]
[341891880,1731271837962,-267.78387663,0.00014783,2]
[341891881,1731271837971,-156.6015676,0.00014791,2]
[341891882,1731271837980,-500.0,0.00014797,2]
[341891883,1731271837989,-500.0,0.00014797,2]
[341891884,1731271837997,-500.0,0.00014797,2]
[341891885,1731271838007,-2406.45,0.00014797,2]
[341891886,1731271838017,-500.0,0.00014797,2]
[341891887,1731271838026,-2053.94,0.00014797,2]
[341891888,1731271838035,-500.0,0.00014797,2]
[341891889,1731271838044,-2178.87,0.00014797,2]
[341891890,1731271838054,-500.0,0.00014797,2]
[341891891,1731271838063,-1763.11,0.00014797,2]
[341891892,1731271838073,-500.0,0.00014797,2]
[341891893,1731271838082,-1190.94,0.00014797,2]
[341891894,1731271838091,-605.52,0.00014797,2]
[341891895,1731271838100,-934.79,0.00014797,2]
[341891896,1731271838109,-500.0,0.00014797,2]
[341891897,1731271838119,-500.0,0.00014797,2]
[341891898,1731271838128,-2769.13,0.00014797,2]
[341891899,1731271838137,-500.01,0.00014797,2]
[341891900,1731271838146,-2608.74,0.00014797,2]
[341891901,1731271838156,-168.12953229,0.00014797,2]
[341891902,1731271838165,-1142.98,0.00014798,2]
[341891903,1731271838174,-500.0,0.00014798,2]
[341891904,1731271838183,-500.0,0.00014798,2]
[341891905,1731271838192,-1879.29,0.00014798,2]
[341891906,1731271838201,-500.0,0.00014798,2]
[341891907,1731271838211,-500.0,0.00014798,2]
[341891908,1731271838220,-500.0,0.00014798,2]
[341891909,1731271838229,-500.0,0.00014798,2]
[341891910,1731271838238,-549.77109971,0.00014798,2]
[341891911,1731271838247,-500.0,0.00014798,2]
[341891912,1731271838259,-500.0,0.00014798,2]
[341891913,1731271838268,-1852.4,0.00014798,2]
[341891914,1731271838277,-500.0,0.00014798,2]
[341891915,1731271838287,-500.0,0.00014798,2]
[341891916,1731271838296,-500.0,0.00014798,2]
[341891917,1731271838305,-500.0,0.00014798,2]
[341891918,1731271838314,-4945.43,0.00014798,2]
[341891919,1731271838324,-500.0,0.00014798,2]
[341891920,1731271838335,-500.0,0.00014798,2]
[341891921,1731271838345,-500.0,0.00014798,2]
[341891922,1731271838354,-500.0,0.00014798,2]
[341891923,1731271838364,-728.29,0.00014798,2]
[341891924,1731271838374,-5022.61,0.00014798,2]
[341891925,1731271838383,-500.0,0.00014798,2]
[341891926,1731271838393,-500.0,0.00014798,2]
[341891927,1731271838401,-500.0,0.00014798,2]
[341891928,1731271838411,-500.0,0.00014798,2]
[341891929,1731271838420,-500.0,0.00014798,2]
[341891930,1731271838429,-500.0,0.00014798,2]
[341891931,1731271838438,-500.0,0.00014798,2]
[341891932,1731271838447,-500.0,0.00014798,2]
[341891933,1731271838456,-500.0,0.00014798,2]
[341891934,1731271838465,-1094.1,0.00014798,2]
[341891936,1731271838474,-575.17,0.00014798,2]
[341891938,1731271838483,-5315.96,0.00014798,2]
[341891939,1731271838492,-500.0,0.00014798,2]
[341891941,1731271838501,-500.0,0.00014798,2]
[341891943,1731271838512,-500.0,0.00014798,2]
[341891944,1731271838521,-500.0,0.00014798,2]
[341891946,1731271838530,-1234.77,0.00014798,2]
[341891947,1731271838538,-500.0,0.00014798,2]
[341891949,1731271838547,-667.74,0.00014798,2]
[341891951,1731271838556,-500.0,0.00014798,2]
[341891952,1731271838565,-4659.68,0.00014798,2]
[341891953,1731271838574,-892.82,0.00014798,2]
[341891954,1731271838583,-500.0,0.00014798,2]
[341891955,1731271838592,-500.0,0.00014798,2]
[341891956,1731271838602,-865.12,0.00014798,2]
[341891957,1731271838611,-500.0,0.00014798,2]
[341891959,1731271838620,-975.73,0.00014798,2]
[341891960,1731271838629,-500.0,0.00014798,2]
[341891961,1731271838638,-500.0,0.00014798,2]
[341891962,1731271838648,-1230.36,0.00014798,2]
[341891963,1731271838659,-524.38799527,0.00014798,2]
[341891964,1731271838669,-500.0,0.00014798,2]
[341891965,1731271838678,-1506.41,0.00014798,2]
[341891966,1731271838687,-500.0,0.00014798,2]
[341891967,1731271838696,-500.0,0.00014798,2]
[341891968,1731271838706,-500.0,0.00014798,2]
[341891969,1731271838715,-500.0,0.00014798,2]
[341891970,1731271838725,-500.0,0.00014798,2]
[341891971,1731271838734,-4429.13,0.00014798,2]
[341891972,1731271838744,-2112.57,0.00014798,2]
[341891973,1731271838755,-1830.3,0.00014798,2]
[341891974,1731271838764,-984.09,0.00014798,2]
[341891975,1731271838774,-1013.45,0.00014798,2]
[341891976,1731271838785,-500.0,0.00014798,2]
[341891977,1731271838794,-500.0,0.00014798,2]
[341891978,1731271838804,-1001.72,0.00014798,2]
[341891979,1731271838813,-500.0,0.00014798,2]
[341891980,1731271838823,-600.14,0.00014798,2]
[341891981,1731271838833,-178.21242534,0.00014798,2]
[341891982,1731271838842,-671.01,0.00014798,2]
[341891983,1731271838851,-500.0,0.00014798,2]
[341891984,1731271838860,-500.0,0.00014798,2]
[341891985,1731271838870,-500.0,0.00014798,2]
[341891986,1731271838879,-500.0,0.00014798,2]
[341891987,1731271838887,-500.0,0.00014798,2]
[341891988,1731271838896,-500.0,0.00014798,2]
[341891989,1731271838905,-1148.82,0.00014798,2]
[341891990,1731271838913,-500.0,0.00014798,2]
[341891991,1731271838923,-500.0,0.00014798,2]
[341891992,1731271838931,-500.0,0.00014798,2]
[341891993,1731271838940,-887.08,0.00014798,2]
[341891994,1731271838949,-500.0,0.00014798,2]